bitfinex/quotes_BTCUSD_20240602
["timestamp","ask_amount","ask_price","bid_price","bid_amount"]
[1717332199044,0.24100204,68116.0,68115.0,0.25349204]
[1717332199497,0.24100204,68116.0,68115.0,0.25449204]
[1717332199498,0.25400204,68116.0,68115.0,0.25449204]
[1717332201288,0.25400204,68116.0,68115.0,0.24449204]
[1717332201498,0.25400204,68116.0,68115.0,0.25449204]
[1717332201702,0.25400204,68116.0,68115.0,0.24449204]
[1717332202757,0.25400204,68116.0,68115.0,0.00599204]
[1717332202956,0.39977995,68116.0,68115.0,0.00599204]
[1717332203154,0.48077995,68116.0,68115.0,0.00317672]
[1717332203798,0.46777995,68116.0,68115.0,0.00217672]
[1717332204103,0.48477995,68116.0,68115.0,0.00117672]
[1717332204260,0.46677995,68116.0,68115.0,0.00117672]
[1717332204463,0.48777995,68116.0,68115.0,0.00317672]
[1717332205104,0.53145548,68116.0,68115.0,0.00317672]
[1717332206675,0.48777995,68116.0,68115.0,0.00317672]
[1717332206903,0.53163093,68116.0,68115.0,0.00317672]
[1717332207136,0.48777995,68116.0,68115.0,0.00317672]
[1717332210077,0.41158591,68116.0,68115.0,0.00317672]
[1717332210278,0.48776913,68116.0,68115.0,0.00317672]
[1717332210427,0.62732289,68116.0,68115.0,0.00317672]
[1717332211258,0.56154682,68116.0,68115.0,0.00317672]
[1717332211628,0.62732275,68116.0,68115.0,0.00317672]
[1717332212056,0.56154682,68116.0,68115.0,0.00317672]
[1717332212550,0.62732338,68116.0,68115.0,0.00317672]
[1717332214749,0.56154682,68116.0,68115.0,0.00317672]
[1717332215883,0.5619705,68116.0,68115.0,0.00317672]
[1717332216083,0.62774706,68116.0,68115.0,0.00317672]
[1717332217385,0.5619705,68116.0,68115.0,0.00317672]
[1717332217607,0.60583097,68116.0,68115.0,0.00317672]
[1717332218558,0.5619705,68116.0,68115.0,0.00317672]
[1717332219537,0.62774706,68116.0,68115.0,0.00317672]
[1717332219747,0.5619705,68116.0,68115.0,0.00317672]
[1717332219935,0.62774706,68116.0,68115.0,0.00317672]
[1717332222738,0.5619705,68116.0,68115.0,0.00317672]
[1717332223337,0.5619705,68116.0,68115.0,0.003]
[1717332223944,0.62774706,68116.0,68115.0,0.003]
[1717332224587,0.5619705,68116.0,68115.0,0.003]
[1717332224991,0.62774706,68116.0,68115.0,0.003]
[1717332226899,0.7722769,68116.0,68115.0,0.003]
[1717332227725,0.68457547,68116.0,68115.0,0.003]
[1717332228181,0.7722769,68116.0,68115.0,0.003]
[1717332229926,0.5619705,68116.0,68115.0,0.003]
[1717332230672,0.55355991,68116.0,68115.0,0.003]
[1717332232674,0.5535802,68116.0,68115.0,0.003]
[1717332233243,0.55358061,68116.0,68115.0,0.003]
[1717332233453,0.48776913,68116.0,68115.0,0.003]
[1717332234302,0.61352533,68116.0,68115.0,0.003]
[1717332234947,0.70127397,68116.0,68115.0,0.003]
[1717332235834,0.61352533,68116.0,68115.0,0.003]
[1717332237665,0.70127397,68116.0,68115.0,0.003]
[1717332237867,0.61352533,68116.0,68115.0,0.003]
[1717332238282,0.70127397,68116.0,68115.0,0.003]
[1717332242563,0.61352533,68116.0,68115.0,0.003]
[1717332243613,0.67573398,68116.0,68115.0,0.003]
[1717332244677,0.67387974,68116.0,68115.0,0.003]
[1717332245082,0.78351756,68116.0,68115.0,0.003]
[1717332246560,0.93811756,68116.0,68115.0,0.003]
[1717332246985,0.82847974,68116.0,68115.0,0.003]
[1717332247133,1.22209574,68116.0,68115.0,0.003]
[1717332251513,1.12209574,68116.0,68115.0,0.003]
[1717332252681,1.22209574,68116.0,68115.0,0.003]
[1717332253171,1.12209574,68116.0,68115.0,0.003]
[1717332253591,1.22209574,68116.0,68115.0,0.003]
[1717332253829,1.25697692,68116.0,68115.0,0.003]
[1717332254515,1.37997692,68116.0,68115.0,0.003]
[1717332254657,1.39794212,68116.0,68115.0,0.003]
[1717332258307,1.36306094,68116.0,68115.0,0.003]
[1717332258680,1.39794407,68116.0,68115.0,0.003]
[1717332258874,1.36306094,68116.0,68115.0,0.003]
[1717332259691,1.26306094,68116.0,68115.0,0.003]
[1717332260162,1.29791247,68116.0,68115.0,0.003]
[1717332260364,1.36306094,68116.0,68115.0,0.003]
[1717332261343,1.26306094,68116.0,68115.0,0.003]
[1717332262276,1.36306094,68116.0,68115.0,0.003]
[1717332263939,1.39791468,68116.0,68115.0,0.003]
[1717332264790,1.26306094,68116.0,68115.0,0.003]
[1717332265204,1.36306094,68116.0,68115.0,0.003]
[1717332267645,1.45898586,68116.0,68115.0,0.003]
[1717332267849,1.49383264,68116.0,68115.0,0.003]
[1717332270715,1.78744864,68116.0,68115.0,0.003]
[1717332271127,1.91886909,68116.0,68115.0,0.003]
[1717332271347,2.06324712,68116.0,68115.0,0.003]
[1717332272305,1.93493542,68116.0,68115.0,0.003]
[1717332272502,1.93503696,68116.0,68115.0,0.003]
[1717332272753,2.26068857,68116.0,68115.0,0.003]
[1717332272994,2.11488303,68116.0,68115.0,0.003]
[1717332273403,2.51287342,68116.0,68115.0,0.003]
[1717332274391,2.51287342,68116.0,68095.0,0.0751]
[1717332274392,0.146851,68096.0,68095.0,0.0751]
[1717332274759,0.36881959,68096.0,68095.0,0.07786956]
[1717332274930,0.36881959,68096.0,68095.0,0.00276956]
[1717332275148,0.146853,68095.0,68094.0,0.1518]
[1717332275343,0.146855,68094.0,68093.0,0.0751]
[1717332275576,0.146857,68093.0,68092.0,0.1501]
[1717332275704,0.146864,68091.0,68088.0,0.0751]
[1717332275907,0.07619068,68090.0,68088.0,0.0751]
[1717332276114,0.07619068,68089.0,68088.0,0.0751]
[1717332276318,0.07619068,68090.0,68088.0,0.0751]
[1717332276544,0.146864,68091.0,68088.0,0.0751]
[1717332276545,0.07619068,68089.0,68088.0,0.0751]
[1717332277439,0.08019068,68089.0,68088.0,0.0751]
[1717332277762,0.08019068,68089.0,68081.0,0.7796]
[1717332277763,0.45776859,68089.0,68081.0,0.7796]
[1717332277954,0.45776859,68089.0,68080.0,0.0751]
[1717332277955,0.146882,68082.0,68080.0,0.0751]
[1717332278155,0.07619068,68081.0,68080.0,0.0751]
[1717332278354,0.22307368,68081.0,68080.0,0.0751]
[1717332278670,0.22307368,68081.0,68080.0,0.2269]
[1717332279097,0.22307368,68081.0,68080.0,0.2439]
[1717332280106,0.22307368,68081.0,68080.0,0.2459]
[1717332280563,0.22307368,68081.0,68080.0,0.2269]
[1717332280774,0.22507368,68081.0,68080.0,0.2289]
[1717332280978,0.22607368,68081.0,68080.0,0.2429]
[1717332282332,0.22607368,68081.0,68080.0,0.24571247]
[1717332286600,0.22607368,68081.0,68080.0,0.17061247]
[1717332287577,0.22607368,68081.0,68080.0,0.24581247]
[1717332288021,0.003,68081.0,68080.0,0.25581247]
[1717332289343,0.003,68081.0,68080.0,0.24181247]
[1717332289344,0.002,68081.0,68080.0,0.24181247]
[1717332290147,0.146856,68094.0,68080.0,0.23981247]
[1717332290362,0.07620615,68093.0,68091.0,0.2393]
[1717332290729,0.07620615,68093.0,68092.0,0.00278208]
[1717332291722,0.09120615,68093.0,68092.0,0.00278208]
[1717332292154,0.10320615,68093.0,68092.0,0.00278208]
[1717332292707,0.09120615,68093.0,68092.0,0.00278208]
[1717332293406,0.25406315,68093.0,68092.0,0.00478208]
[1717332294060,0.26706315,68093.0,68092.0,0.013]
[1717332294271,0.26706315,68093.0,68092.0,0.00578208]
[1717332295125,0.26706315,68093.0,68092.0,0.01578208]
[1717332295955,0.190857,68093.0,68092.0,0.01578208]
[1717332296087,0.26706179,68093.0,68092.0,0.01578208]
[1717332296285,0.26706179,68093.0,68092.0,0.013]
[1717332299645,0.26706179,68093.0,68092.0,0.003]
[1717332299993,0.26706179,68093.0,68092.0,0.013]
[1717332300198,0.26706179,68093.0,68092.0,0.01577469]
[1717332304683,0.12020479,68093.0,68092.0,0.17447469]
[1717332304882,0.12020479,68093.0,68092.0,0.25287469]
[1717332305323,0.044,68093.0,68092.0,0.25287469]
[1717332305539,0.044,68093.0,68092.0,0.4052581]
[1717332306113,0.044,68093.0,68092.0,0.25287469]
[1717332306271,0.044,68093.0,68092.0,0.4052593]
[1717332307258,0.146837,68103.0,68102.0,0.2471]
[1717332307468,0.22302922,68103.0,68102.0,0.2471]
[1717332308523,0.23602922,68103.0,68102.0,0.2481]
[1717332308868,0.25302922,68103.0,68102.0,0.25286342]
[1717332309026,0.49592922,68103.0,68102.0,0.00576342]
[1717332309453,0.49592922,68103.0,68102.0,0.003]
[1717332310284,0.49592922,68103.0,68102.0,0.00576296]
[1717332310727,0.25302922,68103.0,68102.0,0.00576296]
[1717332313389,0.25302922,68103.0,68102.0,0.01576296]
[1717332314017,0.10619222,68103.0,68102.0,0.01576296]
[1717332314359,0.10619222,68103.0,68102.0,0.25286296]
[1717332314560,0.03,68103.0,68102.0,0.25286296]
[1717332315093,0.146813,68114.0,68102.0,0.24986296]
[1717332315294,0.22196044,68113.0,68112.0,0.01]
[1717332315538,0.07618253,68113.0,68112.0,0.01]
[1717332315942,0.07618253,68119.0,68112.0,0.01264883]
[1717332316289,0.2538602,68120.0,68113.0,0.01]
[1717332316290,0.22195938,68118.0,68113.0,0.01]
[1717332316418,0.22195938,68118.0,68111.0,0.2371]
[1717332316419,0.22298847,68117.0,68114.0,0.01]
[1717332316617,0.22195938,68116.0,68114.0,0.01]
[1717332316867,0.07618147,68115.0,68112.0,0.01]
[1717332317081,0.22195938,68115.0,68112.0,0.01]
[1717332317286,0.07618147,68114.0,68113.0,0.00264868]
[1717332318426,0.61167138,68114.0,68113.0,0.00264868]
[1717332318620,0.62867138,68114.0,68113.0,0.001]
[1717332320207,0.62867138,68114.0,68113.0,0.003]
[1717332320208,0.64967138,68114.0,68113.0,0.003]
[1717332323683,0.40677138,68114.0,68113.0,0.003]
[1717332324110,0.40677138,68114.0,68113.0,0.00563566]
[1717332324831,0.40677138,68114.0,68113.0,0.01563566]
[1717332325421,0.40677138,68114.0,68113.0,0.00563566]
[1717332326089,0.26099347,68114.0,68113.0,0.00563566]
[1717332326329,0.11418147,68114.0,68113.0,0.003]
[1717332327934,0.11418147,68114.0,68113.0,0.013]
[1717332328896,0.11418147,68114.0,68113.0,0.003]
[1717332332220,0.11418147,68114.0,68113.0,0.00563566]
[1717332337783,0.11418147,68114.0,68113.0,0.01563566]
[1717332337990,0.11418147,68114.0,68113.0,0.00563566]
[1717332339920,0.11418147,68114.0,68113.0,0.01563566]
[1717332343054,0.11418147,68114.0,68113.0,0.09503566]
[1717332343279,0.11418147,68114.0,68113.0,0.25323566]
[1717332345489,0.11418147,68114.0,68113.0,0.55240618]
[1717332345874,0.11418147,68114.0,68113.0,0.99181309]
[1717332345875,0.038,68114.0,68113.0,0.99181309]
[1717332346977,0.021,68114.0,68113.0,0.99081309]
[1717332347843,0.00718501,68132.0,68130.0,0.01]
[1717332348048,0.07616242,68131.0,68130.0,0.01]
[1717332349439,0.08016242,68131.0,68130.0,0.011]
[1717332351812,0.08016242,68131.0,68130.0,0.001]
[1717332352431,0.31456242,68131.0,68130.0,0.001]
[1717332353292,0.46034033,68131.0,68130.0,0.001]
[1717332353500,0.60711633,68131.0,68130.0,0.001]
[1717332358652,0.84107653,68131.0,68130.0,0.001]
[1717332358849,0.87379429,68131.0,68130.0,0.001]
[1717332359022,0.73011633,68131.0,68130.0,0.001]
[1717332359233,0.146793,68123.0,68114.0,0.01]
[1717332359440,0.45634033,68122.0,68115.0,0.01]
[1717332359580,0.07616242,68121.0,68115.0,0.0025744]
[1717332359778,0.22194033,68121.0,68115.0,0.0025744]
[1717332359999,0.07616242,68120.0,68115.0,0.0025744]
[1717332360851,0.29257691,68121.0,68111.0,0.4691]
[1717332361049,0.07617477,68120.0,68111.0,0.4691]
[1717332361284,0.07717477,68120.0,68115.0,0.009]
[1717332361423,0.31057477,68119.0,68115.0,0.019]
[1717332361622,0.07617477,68118.0,68115.0,0.019]
[1717332361823,0.07617477,68118.0,68115.0,0.009]
[1717332362059,0.07617477,68118.0,68111.0,0.4691]
[1717332362225,0.07617477,68118.0,68111.0,0.4921]
[1717332362434,0.07617477,68118.0,68112.0,0.00257484]
[1717332364697,0.07817477,68118.0,68115.0,0.019]
[1717332364919,0.07617477,68117.0,68115.0,0.01]
[1717332365111,0.07617477,68117.0,68116.0,0.00258712]
[1717332365287,0.07817477,68118.0,68112.0,0.015]
[1717332365494,0.07617477,68117.0,68112.0,0.02]
[1717332365970,0.07617477,68117.0,68115.0,0.002]
[1717332366385,0.07617477,68117.0,68112.0,0.02]
[1717332366879,0.07617477,68117.0,68108.0,0.01]
[1717332367298,0.07617477,68117.0,68109.0,0.00258817]
[1717332367746,0.07617477,68117.0,68105.0,0.39763]
[1717332367962,0.07617477,68117.0,68110.0,0.00258802]
[1717332368157,0.22498177,68117.0,68108.0,0.027]
[1717332368362,0.07617477,68116.0,68112.0,0.012]
[1717332368926,0.07617477,68116.0,68107.0,0.01]
[1717332369127,0.22298277,68116.0,68109.0,0.015]
[1717332369349,0.07617477,68116.0,68110.0,0.00258802]
[1717332369517,0.146813,68114.0,68110.0,0.00258802]
[1717332369718,0.2326,68112.0,68110.0,0.00258802]
[1717332369961,0.07617477,68111.0,68110.0,0.00258802]
[1717332371160,0.07617477,68111.0,68109.0,0.015]
[1717332371784,0.07617477,68111.0,68103.0,0.01]
[1717332372165,0.22499377,68111.0,68110.0,0.015]
[1717332372369,0.146823,68109.0,68104.0,0.0026044]
[1717332372572,0.146823,68109.0,68102.0,0.01]
[1717332372573,0.07617477,68108.0,68102.0,0.01]
[1717332372791,0.07617477,68108.0,68105.0,0.00260933]
[1717332373003,0.07617477,68108.0,68102.0,0.01]
[1717332373196,0.07617477,68108.0,68106.0,0.00260917]
[1717332373399,0.07617477,68108.0,68102.0,0.01]
[1717332373574,0.07617477,68108.0,68107.0,0.00260902]
[1717332373775,0.07617477,68108.0,68102.0,0.01]
[1717332374187,0.07617477,68108.0,68103.0,0.00260961]
[1717332374726,0.07617477,68108.0,68104.0,0.037]
[1717332375102,0.07717477,68108.0,68105.0,0.00460931]
[1717332375310,0.07617477,68107.0,68105.0,0.00260931]
[1717332375537,0.07617477,68107.0,68103.0,0.01]
[1717332375742,0.07617477,68107.0,68104.0,0.00260946]
[1717332375937,0.07617477,68107.0,68105.0,0.01]
[1717332376145,0.07617477,68107.0,68106.0,0.00260917]
[1717332376503,0.07617477,68107.0,68105.0,0.003]
[1717332376612,0.07617477,68107.0,68106.0,0.00260917]
[1717332378395,0.07617477,68107.0,68102.0,0.01]
[1717332378613,0.07617477,68107.0,68106.0,0.00261871]
[1717332378848,0.07717477,68107.0,68104.0,0.006]
[1717332379060,0.001,68107.0,68106.0,0.00261871]
[1717332379271,0.07918927,68107.0,68106.0,0.001]
[1717332379499,0.07918927,68107.0,68106.0,0.00361871]
[1717332379728,0.07918927,68107.0,68106.0,0.00261871]
[1717332379729,0.07818927,68107.0,68106.0,0.00261871]
[1717332379938,0.07918927,68107.0,68104.0,0.006]
[1717332380181,0.07618927,68106.0,68105.0,0.00261886]
[1717332380431,0.07618927,68106.0,68105.0,0.01261886]
[1717332380658,0.07918927,68107.0,68106.0,0.011]
[1717332380884,0.07918816,68107.0,68106.0,0.011]
[1717332381108,0.07818816,68107.0,68106.0,0.01361871]
[1717332382046,0.07618816,68107.0,68106.0,0.01261871]
[1717332382250,0.07718816,68107.0,68106.0,0.01261871]
[1717332382908,0.07718816,68107.0,68106.0,0.01361871]
[1717332382909,0.07918816,68107.0,68106.0,0.01361871]
[1717332394565,0.07918816,68107.0,68106.0,0.00361871]
[1717332394708,0.07918816,68107.0,68106.0,0.001]
[1717332396139,0.07918816,68107.0,68106.0,0.011]
[1717332398481,0.07918816,68107.0,68106.0,0.16337269]
[1717332398940,0.07918816,68107.0,68106.0,0.16599015]
[1717332400725,0.07918638,68107.0,68106.0,0.16599015]
[1717332401653,0.07918638,68107.0,68106.0,0.15599015]
[1717332403051,0.07918638,68107.0,68106.0,0.16599015]
[1717332403987,0.07918638,68107.0,68106.0,0.15599015]
[1717332404233,0.07918638,68107.0,68106.0,0.16599015]
[1717332410708,0.15788638,68107.0,68106.0,0.16599015]
[1717332411635,0.15788638,68107.0,68106.0,0.00361746]
[1717332412119,0.15788638,68107.0,68106.0,0.15337231]
[1717332412632,0.15788638,68107.0,68106.0,0.15598853]
[1717332423030,0.15788638,68107.0,68106.0,0.16598853]
[1717332425499,0.15788504,68107.0,68106.0,0.16598853]
[1717332425698,0.15788504,68107.0,68106.0,0.15598853]
[1717332426288,0.07918504,68107.0,68106.0,0.15598853]
[1717332426489,0.07918504,68107.0,68106.0,0.00361622]
[1717332426490,0.60838995,68107.0,68106.0,0.00361622]
[1717332426722,0.60838995,68107.0,68106.0,0.001]
[1717332426723,0.67421552,68107.0,68106.0,0.001]
[1717332426942,0.68518942,68107.0,68106.0,0.001]
[1717332427075,0.74037327,68107.0,68106.0,0.001]
[1717332427493,0.81716503,68107.0,68106.0,0.001]
[1717332429061,1.13276189,68107.0,68106.0,0.001]
[1717332429275,1.35576189,68107.0,68106.0,0.001]
[1717332429402,1.39925085,68107.0,68106.0,0.001]
[1717332429606,1.43413764,68107.0,68106.0,0.001]
[1717332429820,1.56578879,68107.0,68106.0,0.001]
[1717332430067,1.60897961,68107.0,68106.0,0.001]
[1717332430266,1.60897961,68107.0,68090.0,0.4691]
[1717332430267,0.146861,68092.0,68090.0,0.4691]
[1717332430496,0.31278504,68091.0,68084.0,0.01]
[1717332430645,0.07618504,68090.0,68084.0,0.01]
[1717332430918,0.07618504,68089.0,68083.0,0.2307]
[1717332431105,0.383462,68091.0,68084.0,0.15241454]
[1717332431106,0.07618504,68088.0,68084.0,0.15241454]
[1717332431454,0.383462,68091.0,68083.0,0.2407]
[1717332431455,0.07618504,68087.0,68083.0,0.2307]
[1717332431666,0.07618504,68086.0,68083.0,0.2307]
[1717332431781,0.07618504,68085.0,68083.0,0.2307]
[1717332431987,0.07618504,68084.0,68083.0,0.0804]
[1717332432210,0.07618504,68090.0,68081.0,0.01]
[1717332432424,0.07618504,68090.0,68083.0,0.0026203]
[1717332432425,0.146877,68084.0,68083.0,0.0026203]
[1717332432637,0.146881,68083.0,68080.0,0.01]
[1717332432839,0.31278504,68084.0,68080.0,0.01]
[1717332432840,0.22306704,68082.0,68080.0,0.01]
[1717332433046,0.07618504,68081.0,68080.0,0.01]
[1717332433465,0.07618504,68081.0,68078.0,0.01]
[1717332433995,0.07618504,68081.0,68073.0,0.69228895]
[1717332433996,0.22306904,68081.0,68073.0,0.69228895]
[1717332434225,0.07618504,68080.0,68073.0,0.22318895]
[1717332434449,0.07618504,68080.0,68073.0,0.23318895]
[1717332435149,0.07618504,68080.0,68065.0,0.4691]
[1717332435150,0.234,68079.0,68070.0,0.01]
[1717332435367,0.234,68079.0,68068.0,0.2332]
[1717332435368,0.146894,68077.0,68072.0,0.01]
[1717332435575,0.07618504,68076.0,68072.0,0.01]
[1717332435781,0.07618504,68076.0,68073.0,0.01]
[1717332436153,0.07618504,68076.0,68068.0,0.2432]
[1717332436354,0.22308004,68076.0,68068.0,0.2432]
[1717332436557,0.146901,68073.0,68067.0,0.01]
[1717332436718,0.0817,68072.0,68069.0,0.01]
[1717332436923,0.0817,68072.0,68067.0,0.01]
[1717332436924,0.1523,68071.0,68067.0,0.01]
[1717332437325,0.1523,68071.0,68068.0,0.011]
[1717332437326,0.14691,68069.0,68068.0,0.011]
[1717332437531,0.14691,68069.0,68067.0,0.01]
[1717332437745,0.14691,68069.0,68066.0,0.01]
[1717332437947,0.14691,68069.0,68064.0,0.01]
[1717332438161,0.14691,68069.0,68068.0,0.037]
[1717332438794,0.15091,68069.0,68068.0,0.048]
[1717332439194,0.15091,68069.0,68068.0,0.058]
[1717332439870,0.15091,68069.0,68068.0,0.021]
[1717332440098,0.15291,68069.0,68068.0,0.021]
[1717332440209,0.146913,68068.0,68066.0,0.037]
[1717332440427,0.14577791,68067.0,68066.0,0.037]
[1717332440650,0.14577791,68067.0,68063.0,0.01]
[1717332440856,0.14577791,68067.0,68066.0,0.00268005]
[1717332441063,0.14577791,68067.0,68063.0,0.01]
[1717332441264,0.14577791,68067.0,68066.0,0.00268005]
[1717332441469,0.14577791,68067.0,68064.0,0.01]
[1717332441694,0.14777791,68067.0,68066.0,0.00368005]
[1717332441910,0.14577791,68067.0,68064.0,0.01]
[1717332442115,0.14577791,68067.0,68066.0,0.00268005]
[1717332442313,0.14577791,68067.0,68064.0,0.01]
[1717332442517,0.14577791,68067.0,68066.0,0.00268005]
[1717332442731,0.14577791,68067.0,68066.0,0.01]
[1717332443510,0.14777791,68067.0,68066.0,0.01]
[1717332444072,0.14877791,68067.0,68066.0,0.011]
[1717332446092,0.14877791,68067.0,68066.0,0.001]
[1717332446295,0.14877791,68067.0,68066.0,0.011]
[1717332447238,0.14577791,68067.0,68066.0,0.01]
[1717332447441,0.14677791,68067.0,68066.0,0.011]
[1717332447675,0.14577791,68067.0,68066.0,0.01]
[1717332448055,0.14677791,68067.0,68066.0,0.011]
[1717332448268,0.14677791,68067.0,68066.0,0.01]
[1717332448658,0.14677791,68067.0,68066.0,0.011]
[1717332448883,0.14777791,68067.0,68066.0,0.011]
[1717332449450,0.14777791,68067.0,68066.0,0.001]
[1717332449629,0.14777791,68067.0,68066.0,0.011]
[1717332450044,0.14577791,68067.0,68066.0,0.01]
[1717332450281,0.14577791,68067.0,68065.0,0.01]
[1717332450568,0.14677791,68067.0,68066.0,0.001]
[1717332451156,0.14577791,68067.0,68065.0,0.01]
[1717332451455,0.14577791,68067.0,68066.0,0.01]
[1717332451660,0.14677791,68067.0,68066.0,0.01]
[1717332452457,0.14677791,68067.0,68065.0,0.01]
[1717332452909,0.14677791,68067.0,68066.0,0.01]
[1717332453322,0.15177791,68067.0,68066.0,0.011]
[1717332453527,0.15077791,68067.0,68066.0,0.01]
[1717332453671,0.15077791,68067.0,68065.0,0.01]
[1717332453877,0.15177791,68067.0,68066.0,0.01]
[1717332454120,0.14577791,68067.0,68066.0,0.01]
[1717332454536,0.14577791,68067.0,68064.0,0.01]
[1717332454733,0.15077791,68067.0,68066.0,0.0037071]
[1717332454959,0.15077791,68067.0,68066.0,0.001]
[1717332455103,0.15377791,68067.0,68066.0,0.001]
[1717332456163,0.23001161,68067.0,68066.0,0.001]
[1717332456952,0.23001161,68067.0,68066.0,0.011]
[1717332456953,0.008,68067.0,68066.0,0.011]
[1717332457170,0.008,68067.0,68066.0,0.32369234]
[1717332457171,0.08423102,68067.0,68066.0,0.32369234]
[1717332457386,0.008,68067.0,68066.0,0.400816]
[1717332457592,0.008,68067.0,68066.0,0.55596372]
[1717332457991,0.005,68067.0,68066.0,0.55596372]
[1717332458405,0.002,68067.0,68066.0,0.59196372]
[1717332458822,0.004,68067.0,68066.0,0.56496372]
[1717332459176,0.006,68067.0,68066.0,0.60196372]
[1717332460593,0.01,68067.0,68066.0,0.61296372]
[1717332461268,0.01,68067.0,68066.0,0.59196372]
[1717332461269,0.002,68067.0,68066.0,0.59196372]
[1717332461493,0.58421372,68083.0,68080.0,0.01]
[1717332461934,0.14688,68083.0,68080.0,0.01]
[1717332462627,0.14688,68083.0,68078.0,0.01]
[1717332462826,0.14688,68083.0,68081.0,0.0026923]
[1717332463072,0.14688,68083.0,68080.0,0.01]
[1717332463383,0.14688,68083.0,68082.0,0.00269215]
[1717332463588,0.24688,68083.0,68081.0,0.0026923]
[1717332463805,0.24688,68083.0,68080.0,0.01]
[1717332464022,0.146881,68082.0,68081.0,0.01]
[1717332464270,0.146881,68082.0,68081.0,0.0126923]
[1717332464514,0.146881,68082.0,68080.0,0.011]
[1717332464952,0.146881,68082.0,68081.0,0.0026923]
[1717332465178,0.146881,68082.0,68081.0,0.0126923]
[1717332465399,0.146881,68082.0,68081.0,0.01]
[1717332465624,0.161881,68082.0,68081.0,0.011]
[1717332465826,0.161881,68082.0,68081.0,0.001]
[1717332466602,0.161881,68082.0,68081.0,0.011]
[1717332471781,0.401881,68082.0,68081.0,0.001]
[1717332477076,0.60142191,68082.0,68081.0,0.001]
[1717332477275,0.84142191,68082.0,68081.0,0.001]
[1717332477665,0.88525924,68082.0,68081.0,0.001]
[1717332477891,0.9071779,68082.0,68081.0,0.001]
[1717332478066,1.0071779,68082.0,68081.0,0.001]
[1717332478270,1.15209657,68082.0,68081.0,0.001]
[1717332478489,1.22309734,68082.0,68081.0,0.001]
[1717332478625,1.11350402,68082.0,68081.0,0.001]
[1717332479318,1.21350402,68082.0,68081.0,0.001]
[1717332479514,1.21350402,68082.0,68081.0,0.00096]
[1717332479989,1.11350402,68082.0,68081.0,0.00096]
[1717332480419,1.22318192,68082.0,68081.0,0.00096]
[1717332481124,1.11350402,68082.0,68081.0,0.00096]
[1717332482358,1.21350402,68082.0,68081.0,0.00096]
[1717332486102,1.20850402,68082.0,68081.0,0.00096]
[1717332487343,1.22619873,68082.0,68081.0,0.00096]
[1717332488134,1.12619873,68082.0,68081.0,0.00096]
[1717332489275,1.16116981,68082.0,68081.0,0.00096]
[1717332490632,1.12619873,68082.0,68081.0,0.00096]
[1717332494250,2.03869974,68082.0,68081.0,0.00096]
[1717332494454,2.23952345,68082.0,68081.0,0.00096]
[1717332494628,2.33274284,68082.0,68081.0,0.00096]
[1717332494832,2.48069383,68082.0,68081.0,0.00096]
[1717332495053,2.32674284,68082.0,68081.0,0.00096]
[1717332495231,2.62075,68082.0,68081.0,0.00096]
[1717332495419,0.678722,68070.0,68069.0,0.4691]
[1717332495616,0.97358202,68070.0,68069.0,0.4691]
[1717332495839,1.07358202,68070.0,68069.0,0.47179837]
[1717332496062,0.97358202,68070.0,68069.0,0.4691]
[1717332496286,1.07358202,68070.0,68069.0,0.47179837]
[1717332496474,0.97358202,68070.0,68069.0,0.47179837]
[1717332496716,0.97358202,68070.0,68069.0,0.00269837]
[1717332496940,0.146922,68063.0,68062.0,0.00857]
[1717332497128,0.43661328,68063.0,68062.0,0.00857]
[1717332497299,0.39269991,68063.0,68062.0,0.00857]
[1717332497712,0.43661328,68063.0,68062.0,0.00857]
[1717332497910,0.39269991,68063.0,68062.0,0.00857]
[1717332498704,0.40269991,68063.0,68062.0,0.00857]
[1717332502625,0.56009991,68063.0,68062.0,0.00857]
[1717332503807,0.40269991,68063.0,68062.0,0.00857]
[1717332506711,0.69654491,68063.0,68062.0,0.00857]
[1717332509814,1.23448991,68063.0,68062.0,0.00857]
[1717332510028,0.94064491,68063.0,68062.0,0.00857]
[1717332518984,0.99352971,68063.0,68062.0,0.00857]
[1717332519187,1.03744308,68063.0,68062.0,0.00857]
[1717332521399,0.99352971,68063.0,68062.0,0.00857]
[1717332523230,1.05938399,68063.0,68062.0,0.00857]
[1717332526794,0.99352971,68063.0,68062.0,0.00857]
[1717332527039,1.05944102,68063.0,68062.0,0.00857]
[1717332527481,1.05944102,68063.0,68062.0,0.24637]
[1717332527482,0.0628848,68063.0,68062.0,0.24637]
[1717332527689,0.01,68063.0,68062.0,0.24637]
[1717332527897,0.01,68063.0,68062.0,0.54850469]
[1717332528098,0.04394971,68082.0,68081.0,0.053]
[1717332528428,0.01725069,68087.0,68081.0,0.053]
[1717332528429,0.0612004,68087.0,68081.0,0.053]
[1717332528746,0.14577791,68086.0,68081.0,0.053]
[1717332528948,0.18972762,68086.0,68081.0,0.053]
[1717332529168,0.24852862,68086.0,68075.0,0.1628]
[1717332529419,0.24852862,68086.0,68076.0,0.1551675]
[1717332529420,0.146892,68078.0,68076.0,0.1551675]
[1717332529573,0.146892,68078.0,68076.0,0.0027205]
[1717332529775,0.146892,68078.0,68075.0,0.1628]
[1717332529934,0.146892,68078.0,68076.0,0.0027205]
[1717332530134,0.146892,68078.0,68075.0,0.1628]
[1717332530332,0.146892,68078.0,68076.0,0.0127205]
[1717332530783,0.146892,68078.0,68076.0,0.0027205]
[1717332531658,0.146892,68078.0,68076.0,0.0127205]
[1717332531866,0.149892,68078.0,68076.0,0.0127205]
[1717332532068,0.155892,68078.0,68076.0,0.0137205]
[1717332533299,0.155892,68078.0,68077.0,0.01]
[1717332533584,0.155892,68078.0,68077.0,0.01272352]
[1717332534189,0.152892,68078.0,68077.0,0.01272352]
[1717332534532,0.153892,68078.0,68077.0,0.08872352]
[1717332534750,0.016,68078.0,68077.0,0.08972352]
[1717332534963,0.016,68078.0,68077.0,0.24252352]
[1717332535934,0.016,68078.0,68077.0,0.24152352]
[1717332536137,0.007,68078.0,68077.0,0.24152352]